bitfinex/quotes_BTCUSD_20230120
["timestamp","ask_amount","ask_price","bid_price","bid_amount"]
[1674215378383,0.01669361,20980.0,20979.0,2.96132456]
[1674215379373,0.01669361,20980.0,20979.0,2.84731545]
[1674215379689,0.01669361,20980.0,20979.0,2.85581545]
[1674215379912,0.01669361,20980.0,20979.0,3.0839667]
[1674215380428,0.01669361,20980.0,20979.0,3.02655326]
[1674215380683,0.01669361,20980.0,20979.0,3.19746035]
[1674215380989,0.01669361,20980.0,20979.0,3.02655326]
[1674215381503,0.01669361,20980.0,20979.0,3.19742368]
[1674215382299,0.01669361,20980.0,20979.0,3.02655326]
[1674215382587,0.01669361,20980.0,20979.0,3.31174233]
[1674215382842,0.01669361,20980.0,20979.0,3.78894402]
[1674215383367,0.01669361,20980.0,20979.0,2.47929647]
[1674215383964,0.01669361,20980.0,20979.0,1.39035368]
[1674215386375,0.01669361,20980.0,20979.0,1.06368668]
[1674215386786,0.01669361,20980.0,20979.0,0.91368668]
[1674215387063,0.01669361,20980.0,20979.0,0.90118568]
[1674215387611,0.01669361,20980.0,20979.0,0.42451868]
[1674215390490,0.01569361,20980.0,20979.0,0.34251868]
[1674215390751,0.01669361,20980.0,20979.0,0.41851868]
[1674215391011,0.01569361,20980.0,20979.0,0.34251868]
[1674215391534,0.01669361,20980.0,20979.0,0.41851868]
[1674215393463,0.01669361,20980.0,20979.0,0.076]
[1674215393723,0.13009361,20980.0,20979.0,0.076]
[1674215394531,0.13009361,20980.0,20979.0,0.29150592]
[1674215395057,0.13002438,20980.0,20979.0,0.29150592]
[1674215398211,0.13002438,20980.0,20979.0,0.51861372]
[1674215402011,0.45140376,20980.0,20979.0,0.076]
[1674215402278,0.45140321,20980.0,20979.0,0.076]
[1674215402538,0.89210421,20980.0,20979.0,0.076]
[1674215402822,1.36874821,20980.0,20979.0,0.076]
[1674215403630,1.84539221,20980.0,20979.0,0.076]
[1674215405982,1.81925216,20980.0,20979.0,0.076]
[1674215408869,1.52401283,20980.0,20979.0,0.076]
[1674215409131,1.85600006,20980.0,20979.0,0.076]
[1674215409401,1.52401283,20980.0,20979.0,0.076]
[1674215409713,1.83032861,20980.0,20979.0,0.076]
[1674215414981,1.83032861,20980.0,20979.0,0.07590076]
[1674215415505,1.52401283,20980.0,20979.0,0.07590076]
[1674215416045,1.82401283,20980.0,20979.0,0.07590076]
[1674215416849,1.78640912,20980.0,20979.0,0.07590076]
[1674215417107,1.78540912,20980.0,20978.0,0.00301299]
[1674215417589,1.08331183,20980.0,20979.0,0.037]
[1674215417851,1.63046483,20980.0,20978.0,0.00301299]
[1674215418103,0.81059467,20979.0,20978.0,0.00301299]
[1674215418365,1.76392867,20979.0,20978.0,0.00301299]
[1674215418849,2.06290842,20979.0,20978.0,0.00301299]
[1674215419110,1.76392867,20979.0,20978.0,0.00301299]
[1674215419381,1.76592867,20979.0,20978.0,0.07401299]
[1674215421733,2.06592867,20979.0,20978.0,0.07401299]
[1674215423953,1.87972867,20979.0,20978.0,0.07401299]
[1674215429049,1.922496,20979.0,20978.0,0.07401299]
[1674215429303,2.03683081,20979.0,20978.0,0.07401299]
[1674215429812,2.21744226,20979.0,20978.0,0.07401299]
[1674215430067,2.33177707,20979.0,20978.0,0.07401299]
[1674215430324,2.03683081,20979.0,20978.0,0.07401299]
[1674215430577,2.55164745,20979.0,20978.0,0.07401299]
[1674215430839,2.20833224,20979.0,20978.0,0.07401299]
[1674215431387,2.03683081,20979.0,20978.0,0.07401299]
[1674215431599,2.29110661,20979.0,20978.0,0.07401299]
[1674215432145,2.46260804,20979.0,20978.0,0.07401299]
[1674215432397,2.29110661,20979.0,20978.0,0.07401299]
[1674215432895,2.33466502,20979.0,20978.0,0.07401299]
[1674215432898,2.50616645,20979.0,20978.0,0.07401299]
[1674215433154,4.14329789,20979.0,20978.0,0.07401299]
[1674215433384,4.08615378,20979.0,20978.0,0.07401299]
[1674215433642,4.02846158,20979.0,20978.0,0.07401299]
[1674215434121,4.25715371,20979.0,20978.0,0.07401299]
[1674215434349,4.25715612,20979.0,20978.0,0.07401299]
[1674215434611,4.22578007,20979.0,20978.0,0.07401299]
[1674215434874,3.15746594,20979.0,20978.0,0.07401299]
[1674215435112,2.89100778,20979.0,20978.0,0.07401299]
[1674215435636,3.95928479,20979.0,20978.0,0.07401299]
[1674215436166,4.30476613,20979.0,20978.0,0.07401299]
[1674215436442,2.35668162,20979.0,20978.0,0.07401299]
[1674215436684,3.04789902,20979.0,20978.0,0.07401299]
[1674215436958,2.4910024,20979.0,20978.0,0.07401299]
[1674215437205,2.20833662,20979.0,20978.0,0.07401299]
[1674215437473,3.60930209,20979.0,20978.0,0.07401299]
[1674215438093,3.27658492,20979.0,20978.0,0.07401299]
[1674215438349,3.27658492,20979.0,20978.0,0.07393363]
[1674215438623,3.63217728,20979.0,20978.0,0.07393363]
[1674215438869,3.40348515,20979.0,20978.0,0.07393363]
[1674215439149,3.91909493,20979.0,20978.0,0.07393363]
[1674215439408,3.9192478,20979.0,20978.0,0.07393363]
[1674215440478,3.39250023,20979.0,20978.0,0.07393363]
[1674215440971,3.27790023,20979.0,20978.0,0.07393363]
[1674215441484,3.44913323,20979.0,20978.0,0.07393363]
[1674215442009,3.27790023,20979.0,20978.0,0.07393363]
[1674215442288,3.44853831,20979.0,20978.0,0.07393363]
[1674215442543,3.27730023,20979.0,20978.0,0.07393363]
[1674215443103,2.97730023,20979.0,20978.0,0.07393363]
[1674215443619,3.80374001,20979.0,20978.0,0.07393363]
[1674215443874,3.51787484,20979.0,20978.0,0.07393363]
[1674215444130,3.80374001,20979.0,20978.0,0.07393363]
[1674215444924,3.50374001,20979.0,20978.0,0.07393363]
[1674215445451,3.80374001,20979.0,20978.0,0.07393363]
[1674215445980,3.80395992,20979.0,20978.0,0.07393363]
[1674215446733,3.57556386,20979.0,20978.0,0.07393363]
[1674215447015,3.80386804,20979.0,20978.0,0.07393363]
[1674215447835,3.57556386,20979.0,20978.0,0.07393363]
[1674215448502,3.80392031,20979.0,20978.0,0.07393363]
[1674215448788,3.50392031,20979.0,20978.0,0.07393363]
[1674215449016,3.50392528,20979.0,20978.0,0.07393363]
[1674215450659,3.14876948,20979.0,20978.0,0.08132699]
[1674215451176,3.14876948,20979.0,20978.0,0.07393363]
[1674215453620,3.14882226,20979.0,20978.0,0.07393363]
[1674215453791,2.8638855,20979.0,20978.0,0.07393363]
[1674215454021,2.5385235,20979.0,20978.0,0.07393363]
[1674215454289,3.11162962,20979.0,20978.0,0.07393363]
[1674215454545,2.8706405,20979.0,20978.0,0.07393363]
[1674215454893,2.92820251,20979.0,20978.0,0.12435549]
[1674215455127,1.68913061,20979.0,20978.0,0.07393363]
[1674215455397,1.35701361,20979.0,20978.0,0.07393363]
[1674215455930,1.24276763,20979.0,20978.0,0.07393363]
[1674215457060,1.24276763,20979.0,20978.0,0.17226807]
[1674215457645,1.35701361,20979.0,20978.0,0.17226807]
[1674215458416,1.35701361,20979.0,20978.0,0.07393363]
[1674215460197,1.24276763,20979.0,20978.0,0.07393363]
[1674215460985,1.35701361,20979.0,20978.0,0.07393363]
[1674215461766,1.24276763,20979.0,20978.0,0.07393363]
[1674215463689,1.24276763,20979.0,20978.0,0.07489263]
[1674215464422,1.24276763,20979.0,20978.0,0.071959]
[1674215469864,1.24276763,20979.0,20978.0,0.07188195]
[1674215470387,1.24276763,20979.0,20978.0,0.09407015]
[1674215470876,1.24276763,20979.0,20978.0,0.07188195]
[1674215471125,1.56797963,20979.0,20978.0,0.07188195]
[1674215471375,1.24276763,20979.0,20978.0,0.07188195]
[1674215473687,1.35626763,20979.0,20978.0,0.07188195]
[1674215474548,1.068834,20979.0,20978.0,0.07188195]
[1674215476328,1.400209,20979.0,20978.0,0.07188195]
[1674215477370,1.068834,20979.0,20978.0,0.07188195]
[1674215478123,1.068834,20979.0,20978.0,0.17390307]
[1674215478906,1.068834,20979.0,20978.0,0.58035622]
[1674215480174,1.068834,20979.0,20978.0,0.07188195]
[1674215483711,0.955334,20979.0,20978.0,0.07188195]
[1674215499084,1.41155162,20979.0,20978.0,0.07188195]
[1674215499341,1.73650262,20979.0,20978.0,0.07188195]
[1674215499601,2.86135475,20979.0,20978.0,0.07188195]
[1674215500422,1.90786463,20979.0,20978.0,0.07188195]
[1674215500647,2.53640404,20979.0,20978.0,0.07188195]
[1674215501094,1.71290362,20979.0,20978.0,0.07188195]
[1674215502143,1.73667862,20979.0,20978.0,0.07188195]
[1674215502410,2.8615481,20979.0,20978.0,0.07188195]
[1674215502669,2.86164571,20979.0,20978.0,0.07188195]
[1674215502932,1.73677623,20979.0,20978.0,0.07188195]
[1674215503229,1.58301124,20979.0,20978.0,0.07188195]
[1674215504515,1.41164923,20979.0,20978.0,0.07188195]
[1674215504777,1.73583323,20979.0,20978.0,0.07188195]
[1674215505031,1.73583323,20979.0,20978.0,0.07092295]
[1674215505300,1.41164923,20979.0,20978.0,0.07092295]
[1674215505593,1.58301124,20979.0,20978.0,0.07092295]
[1674215505909,2.74616127,20979.0,20978.0,0.07092295]
[1674215506171,2.86050086,20979.0,20978.0,0.07092295]
[1674215506447,2.97452269,20979.0,20978.0,0.07092295]
[1674215506991,2.74616127,20979.0,20978.0,0.07092295]
[1674215507247,2.86048741,20979.0,20978.0,0.07092295]
[1674215508024,2.74616127,20979.0,20978.0,0.07092295]
[1674215508285,2.80316068,20979.0,20978.0,0.07092295]
[1674215509398,3.33335772,20979.0,20978.0,0.07083308]
[1674215509658,3.44675772,20979.0,20978.0,0.07083308]
[1674215509980,3.16082132,20979.0,20978.0,0.07083308]
[1674215510503,3.44668649,20979.0,20978.0,0.07083308]
[1674215511373,3.08804494,20979.0,20978.0,0.07083308]
[1674215512183,3.16017067,20979.0,20978.0,0.07083308]
[1674215512435,3.44603633,20979.0,20978.0,0.07083308]
[1674215513807,3.44597705,20979.0,20978.0,0.07083308]
[1674215514035,3.08798992,20979.0,20978.0,0.07083308]
[1674215514256,3.44598864,20979.0,20978.0,0.07083308]
[1674215515983,3.445956,20979.0,20978.0,0.07083308]
[1674215517084,3.08796677,20979.0,20978.0,0.07083308]
[1674215519413,3.38796677,20979.0,20978.0,0.07083308]
[1674215519666,3.7463294,20979.0,20978.0,0.07083308]
[1674215519930,3.51796798,20979.0,20978.0,0.07083308]
[1674215520463,3.74644819,20979.0,20978.0,0.07083308]
[1674215521482,3.51796798,20979.0,20978.0,0.07083308]
[1674215521793,3.23210281,20979.0,20978.0,0.07083308]
[1674215522260,3.5176819,20979.0,20978.0,0.07083308]
[1674215523561,3.74612567,20979.0,20978.0,0.07083308]
[1674215523843,3.74612532,20979.0,20978.0,0.07083308]
[1674215524337,4.22872751,20979.0,20978.0,0.07083308]
[1674215524562,3.74612532,20979.0,20978.0,0.07083308]
[1674215524817,3.51737324,20979.0,20978.0,0.07083308]
[1674215525076,3.28891026,20979.0,20978.0,0.07083308]
[1674215525341,3.00333117,20979.0,20978.0,0.07083308]
[1674215525818,3.1361391,20979.0,20978.0,0.07083308]
[1674215526326,3.74013129,20979.0,20978.0,0.07083308]
[1674215526895,3.45457547,20979.0,20978.0,0.07083308]
[1674215527104,3.6073223,20979.0,20978.0,0.07083308]
[1674215528918,3.55017932,20979.0,20978.0,0.07083308]
[1674215529165,3.30627577,20979.0,20978.0,0.07083308]
[1674215531214,3.30627577,20979.0,20978.0,0.07073566]
[1674215532482,2.9878394,20979.0,20978.0,0.07073566]
[1674215532752,3.85978007,20979.0,20978.0,0.07073566]
[1674215533252,3.63136829,20979.0,20978.0,0.07073566]
[1674215533501,3.85979092,20979.0,20978.0,0.07073566]
[1674215533755,3.63136829,20979.0,20978.0,0.07073566]
[1674215534559,4.00843265,20979.0,20978.0,0.07073566]
[1674215535353,4.23687107,20979.0,20978.0,0.07073566]
[1674215535934,4.00843265,20979.0,20978.0,0.07073566]
[1674215537167,4.23689807,20979.0,20978.0,0.07073566]
[1674215537403,4.33743741,20979.0,20978.0,0.07073566]
[1674215537684,5.55710516,20979.0,20974.0,0.02373715]
[1674215537951,0.17138177,20975.0,20974.0,0.02373715]
[1674215538217,4.85430053,20975.0,20974.0,0.02373715]
[1674215538497,4.78959407,20975.0,20974.0,0.02373715]
[1674215538753,4.01416957,20975.0,20974.0,0.02373715]
[1674215539016,4.26008978,20975.0,20974.0,0.02373715]
[1674215539293,4.02317843,20975.0,20974.0,0.02373715]
[1674215539532,4.0901447,20975.0,20974.0,0.02373715]
[1674215539851,4.02308189,20975.0,20974.0,0.02373715]
[1674215540628,4.38467596,20975.0,20974.0,0.02373715]
[1674215540883,4.88396986,20975.0,20974.0,0.02373715]
[1674215541145,4.37567596,20975.0,20974.0,0.02373715]
[1674215541414,4.7499918,20975.0,20974.0,0.02373715]
[1674215541681,4.64525371,20975.0,20974.0,0.02373715]
[1674215542658,4.2188979,20975.0,20974.0,0.02373715]
[1674215543160,4.04759588,20975.0,20974.0,0.02373715]
[1674215543388,5.0483381,20975.0,20974.0,0.02373715]
[1674215544112,4.58074675,20975.0,20974.0,0.02373715]
[1674215544392,4.99804065,20975.0,20974.0,0.02373715]
[1674215544655,4.58074675,20975.0,20974.0,0.02373715]
[1674215545755,3.355194,20975.0,20974.0,0.02373715]
[1674215546020,3.03652891,20975.0,20974.0,0.02373715]
[1674215546286,4.51210839,20975.0,20974.0,0.02373715]
[1674215546538,4.21883069,20975.0,20974.0,0.02373715]
[1674215546793,3.03652891,20975.0,20974.0,0.02373715]
[1674215547068,3.99031542,20975.0,20974.0,0.02373715]
[1674215547303,4.56176548,20975.0,20974.0,0.02373715]
[1674215547660,3.03652891,20975.0,20974.0,0.02373715]
[1674215547844,3.99031514,20975.0,20974.0,0.02373715]
[1674215548105,3.03652891,20975.0,20974.0,0.02373715]
[1674215548616,4.21882326,20975.0,20974.0,0.02373715]
[1674215548925,4.2549959,20975.0,20974.0,0.02373715]
[1674215549184,4.21882388,20975.0,20974.0,0.02373715]
[1674215549958,4.51523491,20975.0,20974.0,0.02373715]
[1674215550480,4.5188973,20975.0,20974.0,0.02373715]
[1674215551245,4.2188973,20975.0,20974.0,0.02373715]
[1674215551528,3.1507011,20975.0,20974.0,0.02373715]
[1674215553058,3.0007011,20975.0,20974.0,0.02373715]
[1674215553332,2.60266137,20975.0,20974.0,0.02373715]
[1674215553575,2.71676014,20975.0,20974.0,0.02373715]
[1674215554096,2.60266137,20975.0,20974.0,0.02373715]
[1674215554373,2.71676014,20975.0,20974.0,0.02373715]
[1674215555139,2.60266137,20975.0,20974.0,0.02373715]
[1674215556370,2.71676014,20975.0,20974.0,0.02373715]
[1674215557429,2.60266137,20975.0,20974.0,0.02373715]
[1674215557953,2.71676014,20975.0,20974.0,0.02373715]
[1674215558965,2.24000214,20975.0,20974.0,0.02363304]
[1674215559245,2.12590337,20975.0,20974.0,0.02363304]
[1674215561566,1.82237937,20975.0,20974.0,0.02363304]
[1674215568309,1.82237937,20975.0,20974.0,0.14120206]
[1674215569300,1.82237937,20975.0,20974.0,0.02363304]
[1674215570043,1.93647814,20975.0,20974.0,0.02363304]
[1674215570301,2.14786337,20975.0,20974.0,0.02363304]
[1674215571067,1.82237937,20975.0,20974.0,0.02363304]
[1674215572603,1.93647814,20975.0,20974.0,0.02363304]
[1674215576726,2.1076191,20975.0,20974.0,0.02363304]
[1674215576965,2.4249801,20975.0,20974.0,0.02363304]
[1674215577194,3.37869385,20975.0,20974.0,0.02363304]
[1674215577680,3.37869412,20975.0,20974.0,0.02363304]
[1674215577933,2.4249801,20975.0,20974.0,0.02363304]
[1674215578183,3.37869287,20975.0,20974.0,0.02363304]
[1674215578439,3.2645941,20975.0,20974.0,0.02363304]
[1674215579259,2.42516679,20975.0,20974.0,0.02363304]
[1674215581722,3.49309918,20975.0,20974.0,0.0235149]
[1674215582280,3.26459016,20975.0,20974.0,0.0235149]
[1674215582797,3.37887621,20975.0,20974.0,0.0235149]
[1674215583086,3.26459016,20975.0,20974.0,0.0235149]
[1674215583300,3.3787945,20975.0,20974.0,0.0235149]
[1674215583586,2.42508567,20975.0,20974.0,0.0235149]
[1674215584350,3.26451206,20975.0,20974.0,0.0235149]
[1674215584610,3.49302108,20975.0,20974.0,0.0235149]
[1674215585110,3.26451206,20975.0,20974.0,0.0235149]
[1674215585640,3.49302108,20975.0,20974.0,0.0235149]
[1674215589289,3.32188012,20975.0,20974.0,0.0235149]
[1674215589571,3.85544487,20975.0,20974.0,0.0235149]
[1674215589814,3.62693585,20975.0,20974.0,0.0235149]
[1674215590363,3.85565717,20975.0,20974.0,0.0235149]
[1674215591131,3.62693585,20975.0,20974.0,0.0235149]
[1674215591944,3.92693585,20975.0,20974.0,0.0235149]
[1674215592210,3.75449957,20975.0,20974.0,0.0235149]
[1674215593013,4.04041287,20975.0,20974.0,0.0235149]
[1674215594350,3.75449957,20975.0,20974.0,0.0235149]
[1674215594621,3.4543942,20975.0,20974.0,0.0235149]
[1674215595146,3.72959227,20975.0,20974.0,0.0235149]
[1674215596214,3.72959227,20975.0,20974.0,0.02977624]
[1674215597831,3.78820065,20975.0,20974.0,0.02977624]
[1674215599733,3.8716881,20975.0,20974.0,0.02977624]
[1674215599998,3.5681942,20975.0,20974.0,0.02801277]
[1674215600252,3.9854881,20975.0,20974.0,0.02801277]
[1674215600517,4.31658571,20975.0,20974.0,0.02801277]
[1674215601260,3.9854881,20975.0,20974.0,0.02801277]
[1674215601805,4.27719233,20975.0,20974.0,0.02801277]
[1674215602319,3.85989843,20975.0,20974.0,0.02801277]
[1674215602587,3.9854881,20975.0,20974.0,0.02801277]
[1674215602806,3.5681942,20975.0,20974.0,0.02801277]
[1674215605458,3.90618691,20975.0,20974.0,0.02801277]
[1674215605715,3.5681942,20975.0,20974.0,0.02801277]
[1674215606496,3.9854881,20975.0,20974.0,0.02801277]
[1674215610441,4.32825163,20975.0,20974.0,0.02801277]
[1674215611478,3.9854881,20975.0,20974.0,0.02801277]
[1674215612734,4.47118979,20975.0,20974.0,0.02801277]
[1674215613011,4.92775332,20975.0,20974.0,0.02801277]
[1674215613258,4.92775332,20975.0,20974.0,0.00506619]
[1674215613532,5.41035551,20975.0,20974.0,0.00506619]
[1674215614295,4.92775332,20975.0,20974.0,0.00506619]
[1674215614808,4.16769589,20975.0,20974.0,0.00506619]
[1674215615096,4.58498979,20975.0,20974.0,0.00506619]
[1674215616117,4.45251204,20975.0,20974.0,0.00506619]
[1674215616372,4.16769589,20975.0,20974.0,0.00506619]
[1674215617920,4.48899535,20975.0,20974.0,0.00506619]
[1674215618187,4.68710893,20975.0,20974.0,0.00506619]
[1674215619000,4.58498979,20975.0,20974.0,0.00506619]
[1674215619532,4.92775332,20975.0,20974.0,0.00506619]
[1674215624477,5.28454029,20975.0,20974.0,0.00506619]
[1674215624750,4.92775332,20975.0,20974.0,0.00506619]
[1674215625636,4.94176121,20975.0,20974.0,0.00506619]
[1674215626074,5.4243634,20975.0,20974.0,0.00506619]
[1674215626895,4.94176121,20975.0,20974.0,0.00506619]
[1674215627122,4.94176121,20975.0,20974.0,0.00463876]
[1674215629111,6.26275033,20975.0,20974.0,0.00463876]
[1674215630155,6.26269637,20975.0,20974.0,0.00463876]
[1674215631264,4.94176121,20975.0,20974.0,0.00463876]
[1674215632670,4.9278705,20975.0,20974.0,0.00463876]
[1674215632931,4.66680116,20975.0,20974.0,0.00463876]
[1674215633193,4.3973766,20975.0,20974.0,0.00463876]
[1674215633698,4.3973766,20975.0,20974.0,0.00086323]
[1674215634246,4.8146705,20975.0,20974.0,0.00086323]
[1674215634503,4.3973766,20975.0,20974.0,0.00086323]
[1674215635031,4.8146705,20975.0,20974.0,0.00086323]
[1674215635293,4.8287188,20975.0,20974.0,0.00086323]
[1674215635815,4.39742954,20975.0,20974.0,0.00086323]
[1674215638837,4.81472344,20975.0,20974.0,0.00086323]
[1674215639066,4.41140404,20975.0,20974.0,0.00086323]
[1674215639589,5.31130013,20975.0,20974.0,0.00086323]
[1674215640714,4.39753751,20975.0,20974.0,0.00086323]
[1674215642762,4.82838258,20975.0,20974.0,0.00086323]
[1674215643559,4.41108868,20975.0,20974.0,0.00086323]
[1674215643819,4.52438868,20975.0,20974.0,0.00086323]
[1674215644397,4.94168258,20975.0,20974.0,0.00086323]
[1674215644661,6.74449458,20975.0,20974.0,0.00086323]
[1674215645231,6.32720068,20975.0,20974.0,0.00086323]
[1674215645489,6.74449458,20975.0,20974.0,0.00086323]
[1674215646761,7.13041256,20975.0,20974.0,0.00086323]
[1674215647019,7.01661256,20975.0,20974.0,0.00086323]
[1674215647273,6.64781037,20975.0,20974.0,0.00086323]
[1674215650799,0.00075463,20973.0,20970.0,0.00521023]
[1674215651070,0.1138,20971.0,20970.0,0.00521023]
[1674215651334,2.89751467,20971.0,20970.0,0.00521023]
[1674215651598,3.90581026,20971.0,20970.0,0.00521023]
[1674215651902,4.51071245,20971.0,20970.0,0.00521023]
[1674215652159,4.91562918,20971.0,20970.0,0.00521023]
[1674215652451,4.90142552,20971.0,20970.0,0.00521023]
[1674215652711,4.85325054,20971.0,20970.0,0.00521023]
[1674215653435,5.20962731,20971.0,20970.0,0.00097956]
[1674215653437,4.86710844,20971.0,20969.0,0.00518704]
[1674215653716,3.722817,20970.0,20968.0,0.00447863]
[1674215653969,4.39174126,20969.0,20968.0,0.00447863]
[1674215654229,4.40024126,20969.0,20968.0,0.00447863]
[1674215654509,4.88284345,20969.0,20968.0,0.00447863]
[1674215655291,4.97484345,20969.0,20968.0,0.00447863]
[1674215655550,4.88284345,20969.0,20968.0,0.00447863]
[1674215656360,5.16797136,20969.0,20968.0,0.00447863]
[1674215656584,4.68536917,20969.0,20968.0,0.00447863]
[1674215657335,4.77736917,20969.0,20968.0,0.00447863]
[1674215657369,4.58818255,20969.0,20968.0,0.00447863]
[1674215657628,4.24584909,20969.0,20968.0,0.00447863]
[1674215657906,3.33521276,20969.0,20968.0,0.00447863]
[1674215658173,3.10710548,20969.0,20968.0,0.00447863]
[1674215658436,2.49398402,20969.0,20968.0,0.00447863]
[1674215658700,2.40735752,20969.0,20968.0,0.00447863]
[1674215658966,2.26744165,20969.0,20968.0,0.00447863]
[1674215659809,2.25894165,20969.0,20968.0,0.00447863]
[1674215660039,1.97425337,20969.0,20968.0,0.00447863]
[1674215660328,2.54878583,20969.0,20968.0,0.00447863]
[1674215661692,2.13473746,20969.0,20968.0,0.00447863]
[1674215661940,2.24878583,20969.0,20968.0,0.00447863]
[1674215662201,2.13473746,20969.0,20968.0,0.00447863]
[1674215662696,2.13369698,20969.0,20968.0,0.00447863]
[1674215670583,2.24774535,20969.0,20968.0,0.00447863]
[1674215670834,2.13369698,20969.0,20968.0,0.00447863]
[1674215671878,2.24774535,20969.0,20968.0,0.00447863]
[1674215673277,2.13369698,20969.0,20968.0,0.00447863]
[1674215674633,3.55884497,20969.0,20968.0,0.00447863]
[1674215674914,3.97902455,20969.0,20968.0,0.00447863]
[1674215675219,3.64271753,20969.0,20968.0,0.00447863]
[1674215675981,3.76224756,20969.0,20968.0,0.00447863]
[1674215676260,2.50818785,20969.0,20968.0,0.00447863]
[1674215676523,2.28008057,20969.0,20968.0,0.00447863]
[1674215676810,3.23413599,20969.0,20968.0,0.00447863]
[1674215677043,3.53413706,20969.0,20968.0,0.00447863]
[1674215677846,2.69415661,20969.0,20968.0,0.00447863]
[1674215678373,3.53412434,20969.0,20968.0,0.00447863]
[1674215679151,3.76223162,20969.0,20968.0,0.00447863]
[1674215679418,3.53412434,20969.0,20968.0,0.00447863]
[1674215679645,3.76223162,20969.0,20968.0,0.00447863]
[1674215679870,3.53412434,20969.0,20968.0,0.00447863]
[1674215680191,3.76223162,20969.0,20968.0,0.00447863]
[1674215684123,3.59114334,20969.0,20968.0,0.00447863]
[1674215684672,4.11937495,20969.0,20968.0,0.00447863]
[1674215684916,4.1191951,20969.0,20968.0,0.00440888]
[1674215685175,3.83406719,20969.0,20968.0,0.00440888]
[1674215685439,3.7623574,20969.0,20968.0,0.00440888]
[1674215685704,3.21252963,20969.0,20968.0,0.00440888]
[1674215686005,3.64125624,20969.0,20968.0,0.00440888]
[1674215686234,3.89669988,20969.0,20968.0,0.00440888]
[1674215686498,4.1250214,20969.0,20968.0,0.00440888]
[1674215688078,3.89669988,20969.0,20968.0,0.00440888]
[1674215688849,4.37930207,20969.0,20968.0,0.00440888]
[1674215689474,3.89669988,20969.0,20968.0,0.00440888]
[1674215693523,4.12504541,20969.0,20968.0,0.00440888]
[1674215693781,3.89669988,20969.0,20968.0,0.00440888]
[1674215696100,3.61157197,20969.0,20968.0,0.00440888]
[1674215696621,3.35612833,20969.0,20968.0,0.00440888]
[1674215697133,3.67428487,20969.0,20968.0,0.00440888]
[1674215697380,3.62951982,20969.0,20968.0,0.00440888]
[1674215698988,3.35612833,20969.0,20968.0,0.00440888]
[1674215699181,3.6243172,20969.0,20968.0,0.00440888]
[1674215699442,3.81183611,20969.0,20968.0,0.00440888]
[1674215700766,3.66281953,20969.0,20968.0,0.00440888]
[1674215701024,3.35612833,20969.0,20968.0,0.00440888]
[1674215701798,3.66489207,20969.0,20968.0,0.00440888]
[1674215702584,3.6503556,20969.0,20968.0,0.00440888]
[1674215702845,3.87873518,20969.0,20968.0,0.00440888]
[1674215703360,2.1169291,20969.0,20968.0,0.00440888]
[1674215703630,1.94564227,20969.0,20968.0,0.08748041]
[1674215703873,2.11680926,20969.0,20968.0,0.08748041]
[1674215704385,1.94552243,20969.0,20968.0,0.08748041]
[1674215704638,3.07080154,20969.0,20968.0,0.00440888]
[1674215704902,3.27567601,20969.0,20968.0,0.00440888]
[1674215705491,3.50405559,20969.0,20968.0,0.00440888]
[1674215705928,3.86043899,20969.0,20968.0,0.00440888]
[1674215706202,3.33276876,20969.0,20968.0,0.00440888]
[1674215706454,3.86044784,20969.0,20968.0,0.00440888]
[1674215707231,3.57498431,20969.0,20968.0,0.00440888]
[1674215707956,3.33276876,20969.0,20968.0,0.00440888]
[1674215708470,3.50406465,20969.0,20968.0,0.00440888]
[1674215708747,3.33276876,20969.0,20968.0,0.00440888]
[1674215710035,3.50407594,20969.0,20968.0,0.00440888]
[1674215710266,3.33276876,20969.0,20968.0,0.00440888]
[1674215712289,3.5040615,20969.0,20968.0,0.00440888]
[1674215713596,3.27568192,20969.0,20968.0,0.00440888]
[1674215714108,3.5040615,20969.0,20968.0,0.00440888]
[1674215714385,3.5040615,20969.0,20968.0,0.02532156]
[1674215714854,3.27568192,20969.0,20968.0,0.02532156]
[1674215715118,3.5040615,20969.0,20968.0,0.02532156]
[1674215715378,3.27568192,20969.0,20968.0,0.02532156]
[1674215715628,3.5040615,20969.0,20968.0,0.02532156]
[1674215716651,3.27568192,20969.0,20968.0,0.02532156]
[1674215717222,3.5040615,20969.0,20968.0,0.02532156]
[1674215719101,3.50408169,20969.0,20968.0,0.02532156]
[1674215720147,3.18501069,20969.0,20968.0,0.02532156]
[1674215720922,2.95663111,20969.0,20968.0,0.02532156]
[1674215721179,2.116859,20969.0,20968.0,0.02532156]
[1674215721452,1.94554607,20969.0,20968.0,0.02532156]
[1674215722218,2.116859,20969.0,20968.0,0.02532156]
[1674215722493,1.94554607,20969.0,20968.0,0.02532156]
[1674215722760,2.116859,20969.0,20968.0,0.02532156]
[1674215724100,1.94554607,20969.0,20968.0,0.02532156]
[1674215724964,1.94554607,20969.0,20968.0,0.02521783]
[1674215725923,2.116859,20969.0,20968.0,0.02521783]
[1674215727215,2.95663422,20969.0,20968.0,0.02521783]
[1674215727437,3.29232122,20969.0,20968.0,0.02521783]
[1674215728746,2.45254928,20969.0,20968.0,0.02521783]
[1674215728999,2.11686228,20969.0,20968.0,0.02521783]
[1674215731781,1.94554935,20969.0,20968.0,0.02521783]
[1674215732813,2.11686228,20969.0,20968.0,0.02521783]
[1674215733071,1.63996828,20969.0,20968.0,0.02521783]
[1674215735343,1.46865535,20969.0,20968.0,0.02521783]
[1674215736099,1.63996828,20969.0,20968.0,0.02521783]
[1674215737125,1.46865535,20969.0,20968.0,0.02521783]
[1674215737596,1.3544319,20969.0,20968.0,0.02521783]
[1674215737849,1.3544319,20969.0,20968.0,0.03939883]
[1674215738626,1.3544319,20969.0,20968.0,0.02521783]
[1674215739152,1.46865535,20969.0,20968.0,0.02521783]
[1674215740256,1.3544319,20969.0,20968.0,0.02521783]
[1674215740778,1.46865535,20969.0,20968.0,0.02521783]
[1674215741250,1.3544319,20969.0,20968.0,0.02521783]
[1674215741508,0.8775379,20969.0,20968.0,0.02521783]
[1674215743052,0.99176135,20969.0,20968.0,0.02521783]
[1674215746240,1.46865535,20969.0,20968.0,0.02521783]
[1674215746687,1.46859045,20969.0,20968.0,0.02521783]
[1674215746973,1.46859045,20969.0,20968.0,0.18354355]
[1674215750766,1.46859045,20969.0,20968.0,0.02521783]
[1674215750919,2.59387421,20969.0,20968.0,0.02521783]
[1674215751184,2.90142227,20969.0,20968.0,0.02521783]
[1674215751446,1.46859045,20969.0,20968.0,0.02521783]
[1674215751752,0.99169645,20969.0,20968.0,0.02521783]
[1674215752016,1.16300938,20969.0,20968.0,0.02521783]
[1674215752836,0.99169645,20969.0,20968.0,0.02521783]
[1674215753381,0.68293271,20969.0,20968.0,0.18497602]
[1674215753651,0.56870926,20969.0,20968.0,0.19915702]
[1674215753939,0.56870926,20969.0,20968.0,0.18497602]
[1674215754203,0.56870926,20969.0,20968.0,0.19915702]
[1674215754482,0.56870926,20969.0,20968.0,0.18553056]
[1674215755051,0.092,20969.0,20968.0,0.89139421]
[1674215755679,0.092,20969.0,20968.0,1.15419421]
[1674215755948,0.092,20969.0,20968.0,1.86835919]
[1674215756214,0.092,20969.0,20968.0,1.88039354]
[1674215756741,0.092,20969.0,20968.0,2.02724002]